[Event "Titled Tuesday Blitz January 11 2022"]
[White "Salimova, Nurgyul"]
[Black "Sanal, Vahap"]
[WhiteFideId "2915138"]
[BlackFideId "6300545"]
[WhiteElo "2185"]
[BlackElo "2603"]
[Result "0-1"]
[Round "02"]
[TimeControl "180+1"]
[Date "2022.01.11"]
[WhiteClock "0:00:17"]
[BlackClock "0:01:08"]

1. d4 {[%clk 0:03:00]}  Nf6 {[%clk 0:02:59]} 2. Nc3 {[%clk 0:03:00]}  d5 {[%clk 0:02:59]} 3. Bf4 {[%clk 0:03:00]}  e6 {[%clk 0:02:56]} 4. Nb5 {[%clk 0:02:59]}  Na6 {[%clk 0:02:56]} 5. e3 {[%clk 0:02:59]}  c6 {[%clk 0:02:56]} 6. Nc3 {[%clk 0:02:59]}  Bb4 {[%clk 0:02:55]} 7. Bd3 {[%clk 0:02:59]}  Bxc3+ {[%clk 0:02:52]} 8. bxc3 {[%clk 0:03:00]}  Qa5 {[%clk 0:02:52]} 9. Ne2 {[%clk 0:02:59]}  c5 {[%clk 0:02:52]} 10. dxc5 {[%clk 0:02:31]}  Nxc5 {[%clk 0:02:51]} 11. O-O {[%clk 0:02:31]}  O-O {[%clk 0:02:45]} 12. c4 {[%clk 0:02:25]}  Rd8 {[%clk 0:02:42]} 13. Qc1 {[%clk 0:02:14]}  b6 {[%clk 0:02:31]} 14. cxd5 {[%clk 0:02:06]}  Nxd5 {[%clk 0:02:30]} 15. Bg5 {[%clk 0:02:06]}  f6 {[%clk 0:02:28]} 16. Bh4 {[%clk 0:02:06]}  Nxd3 {[%clk 0:02:24]} 17. cxd3 {[%clk 0:02:06]}  Ba6 {[%clk 0:02:25]} 18. Qc6 {[%clk 0:02:04]}  Bxd3 {[%clk 0:02:16]} 19. Qxe6+ {[%clk 0:02:02]}  Kh8 {[%clk 0:02:17]} 20. Nd4 {[%clk 0:01:48]}  Bxf1 {[%clk 0:02:13]} 21. Rxf1 {[%clk 0:01:49]}  Qxa2 {[%clk 0:02:02]} 22. Nf5 {[%clk 0:01:42]}  Rg8 {[%clk 0:01:49]} 23. Nh6 {[%clk 0:01:36]}  Rgf8 {[%clk 0:01:42]} 24. Nf7+ {[%clk 0:01:34]}  Rxf7 {[%clk 0:01:40]} 25. Qxf7 {[%clk 0:01:35]}  Nc3 {[%clk 0:01:35]} 26. Qc7 {[%clk 0:01:24]}  Qc2 {[%clk 0:01:22]} 27. Qd6 {[%clk 0:00:59]}  Ne2+ {[%clk 0:01:19]} 28. Kh1 {[%clk 0:00:59]}  Qc4 {[%clk 0:01:20]} 29. Rd1 {[%clk 0:00:57]}  Nc3 {[%clk 0:01:12]} 30. Rc1 {[%clk 0:00:34]}  Qxh4 {[%clk 0:01:09]} 31. Rxc3 {[%clk 0:00:31]}  Qxf2 {[%clk 0:01:09]} 32. Qd1 {[%clk 0:00:19]}  Rg8 {[%clk 0:01:04]} 33. Rc7 {[%clk 0:00:17]}  a5 {[%clk 0:01:03]} 34. h3 {[%clk 0:00:17]}  Qxe3 {[%clk 0:01:03]} 35. Qd6 {[%clk 0:00:15]}  Qe1+ {[%clk 0:01:03]} 36. Kh2 {[%clk 0:00:15]}  Qe5+ {[%clk 0:01:03]} 37. Qxe5 {[%clk 0:00:16]}  fxe5 {[%clk 0:01:04]} 38. Rb7 {[%clk 0:00:16]}  Ra8 {[%clk 0:01:04]} 39. Rxb6 {[%clk 0:00:16]}  a4 {[%clk 0:01:05]} 40. Rb2 {[%clk 0:00:17]}  a3 {[%clk 0:01:06]} 41. Ra2 {[%clk 0:00:17]}  Kg8 {[%clk 0:01:06]} 42. Kg3 {[%clk 0:00:17]}  Kf7 {[%clk 0:01:07]} 43. Kf3 {[%clk 0:00:17]}  Ke6 {[%clk 0:01:08]} 0-1


[Site "https://www.chess.com"]

[Event "Titled Tuesday Blitz January 11 2022"]
[White "Seul, Georg"]
[Black "Piorun, Kacper"]
[WhiteFideId "4601653"]
[BlackFideId "1130420"]
[WhiteElo "2271"]
[BlackElo "2571"]
[Result "0-1"]
[Round "02"]
[TimeControl "180+1"]
[Date "2022.01.11"]
[WhiteClock "0:00:01"]
[BlackClock "0:00:16"]

1. e4 {[%clk 0:03:00]}  c5 {[%clk 0:03:00]} 2. d3 {[%clk 0:03:00]}  e6 {[%clk 0:02:58]} 3. f4 {[%clk 0:03:00]}  d5 {[%clk 0:02:58]} 4. Be2 {[%clk 0:03:00]}  Nc6 {[%clk 0:02:58]} 5. Nf3 {[%clk 0:03:00]}  Nf6 {[%clk 0:02:52]} 6. e5 {[%clk 0:03:00]}  Nd7 {[%clk 0:02:52]} 7. c3 {[%clk 0:03:01]}  d4 {[%clk 0:02:49]} 8. O-O {[%clk 0:02:59]}  Be7 {[%clk 0:02:47]} 9. Na3 {[%clk 0:02:59]}  dxc3 {[%clk 0:02:42]} 10. bxc3 {[%clk 0:02:58]}  O-O {[%clk 0:02:36]} 11. Rb1 {[%clk 0:02:48]}  a6 {[%clk 0:02:34]} 12. Nd2 {[%clk 0:02:45]}  b5 {[%clk 0:02:33]} 13. Ne4 {[%clk 0:02:44]}  Bb7 {[%clk 0:02:28]} 14. Nc2 {[%clk 0:02:43]}  Qc7 {[%clk 0:02:28]} 15. Be3 {[%clk 0:02:42]}  Rfd8 {[%clk 0:02:24]} 16. Bf3 {[%clk 0:02:41]}  Rac8 {[%clk 0:02:20]} 17. Qe2 {[%clk 0:02:40]}  Na5 {[%clk 0:02:13]} 18. g4 {[%clk 0:02:24]}  Nf8 {[%clk 0:02:09]} 19. Bg2 {[%clk 0:02:15]}  Bd5 {[%clk 0:02:03]} 20. f5 {[%clk 0:02:11]}  exf5 {[%clk 0:01:57]} 21. Rxf5 {[%clk 0:02:00]}  Be6 {[%clk 0:01:52]} 22. Rf2 {[%clk 0:01:48]}  Qd7 {[%clk 0:01:42]} 23. Rd1 {[%clk 0:00:57]}  Bxg4 {[%clk 0:01:40]} 24. Bf3 {[%clk 0:00:57]}  Bxf3 {[%clk 0:01:39]} 25. Qxf3 {[%clk 0:00:57]}  Bh4 {[%clk 0:01:18]} 26. Rg2 {[%clk 0:00:28]}  Ng6 {[%clk 0:01:17]} 27. Qh5 {[%clk 0:00:25]}  Be7 {[%clk 0:00:55]} 28. Bg5 {[%clk 0:00:19]}  Nc6 {[%clk 0:00:44]} 29. Nf6+ {[%clk 0:00:17]}  gxf6 {[%clk 0:00:43]} 30. exf6 {[%clk 0:00:17]}  Bf8 {[%clk 0:00:43]} 31. Rg3 {[%clk 0:00:15]}  Nce5 {[%clk 0:00:34]} 32. Kh1 {[%clk 0:00:12]}  Qd5+ {[%clk 0:00:34]} 33. Kg1 {[%clk 0:00:11]}  Nd7 {[%clk 0:00:25]} 34. Ne3 {[%clk 0:00:09]}  Nxf6 {[%clk 0:00:18]} 35. Qe2 {[%clk 0:00:04]}  Qe6 {[%clk 0:00:17]} 36. Bxf6 {[%clk 0:00:04]}  Qxf6 {[%clk 0:00:17]} 37. Ng4 {[%clk 0:00:03]}  Qe6 {[%clk 0:00:17]} 38. Qf2 {[%clk 0:00:01]}  Bg7 {[%clk 0:00:17]} 39. Rf1 {[%clk 0:00:01]}  f5 {[%clk 0:00:16]} 0-1


[Site "https://www.chess.com"]

[Event "Titled Tuesday Blitz January 11 2022"]
[White "Svane, Rasmus"]
[Black "Bodnaruk, Anastasia"]
[WhiteFideId "4657101"]
[BlackFideId "4181751"]
[WhiteElo "2645"]
[BlackElo "2393"]
[Result "1-0"]
[Round "02"]
[TimeControl "180+1"]
[Date "2022.01.11"]
[WhiteClock "0:00:07"]
[BlackClock "0:00:02"]

1. Nf3 {[%clk 0:03:00]}  Nf6 {[%clk 0:02:59]} 2. g3 {[%clk 0:03:01]}  g6 {[%clk 0:03:00]} 3. Bg2 {[%clk 0:03:01]}  Bg7 {[%clk 0:03:00]} 4. O-O {[%clk 0:03:02]}  O-O {[%clk 0:03:01]} 5. d4 {[%clk 0:03:03]}  d5 {[%clk 0:03:00]} 6. c4 {[%clk 0:03:03]}  c6 {[%clk 0:03:00]} 7. Qb3 {[%clk 0:03:03]}  a5 {[%clk 0:02:58]} 8. Rd1 {[%clk 0:03:03]}  a4 {[%clk 0:02:57]} 9. Qb4 {[%clk 0:03:04]}  dxc4 {[%clk 0:02:44]} 10. Qxc4 {[%clk 0:03:05]}  Bf5 {[%clk 0:02:44]} 11. e3 {[%clk 0:03:01]}  Nbd7 {[%clk 0:02:37]} 12. Nc3 {[%clk 0:03:01]}  b5 {[%clk 0:02:27]} 13. Qe2 {[%clk 0:02:30]}  b4 {[%clk 0:02:26]} 14. Nb1 {[%clk 0:02:30]}  Qb6 {[%clk 0:02:06]} 15. Nbd2 {[%clk 0:02:23]}  Qb5 {[%clk 0:01:56]} 16. Qxb5 {[%clk 0:01:50]}  cxb5 {[%clk 0:01:55]} 17. Nh4 {[%clk 0:01:50]}  Bc2 {[%clk 0:01:54]} 18. Bxa8 {[%clk 0:01:42]}  Rxa8 {[%clk 0:01:42]} 19. Re1 {[%clk 0:01:39]}  Nb6 {[%clk 0:01:39]} 20. Ndf3 {[%clk 0:01:18]}  Ne4 {[%clk 0:01:36]} 21. Ng2 {[%clk 0:01:05]}  g5 {[%clk 0:01:28]} 22. h4 {[%clk 0:01:04]}  h6 {[%clk 0:01:27]} 23. Ne5 {[%clk 0:00:57]}  Bxe5 {[%clk 0:01:14]} 24. dxe5 {[%clk 0:00:58]}  Nc4 {[%clk 0:01:14]} 25. f3 {[%clk 0:00:42]}  Nc5 {[%clk 0:00:45]} 26. e4 {[%clk 0:00:27]}  Nxe5 {[%clk 0:00:42]} 27. Rf1 {[%clk 0:00:20]}  Ne6 {[%clk 0:00:29]} 28. hxg5 {[%clk 0:00:15]}  hxg5 {[%clk 0:00:29]} 29. Ne3 {[%clk 0:00:13]}  Bd3 {[%clk 0:00:26]} 30. Rf2 {[%clk 0:00:14]}  Nd4 {[%clk 0:00:25]} 31. Kg2 {[%clk 0:00:13]}  Nexf3 {[%clk 0:00:21]} 32. Nf5 {[%clk 0:00:06]}  Bxe4 {[%clk 0:00:20]} 33. Nxd4 {[%clk 0:00:06]}  Nxd4+ {[%clk 0:00:17]} 34. Kf1 {[%clk 0:00:07]}  Nc2 {[%clk 0:00:13]} 35. Rxc2 {[%clk 0:00:07]}  Bxc2 {[%clk 0:00:12]} 36. Bxg5 {[%clk 0:00:08]}  f6 {[%clk 0:00:12]} 37. Bd2 {[%clk 0:00:09]}  b3 {[%clk 0:00:10]} 38. axb3 {[%clk 0:00:07]}  Bxb3 {[%clk 0:00:10]} 39. Bb4 {[%clk 0:00:08]}  e5 {[%clk 0:00:10]} 40. Rc1 {[%clk 0:00:08]}  Bc4+ {[%clk 0:00:08]} 41. Kf2 {[%clk 0:00:08]}  Rd8 {[%clk 0:00:08]} 42. Ke3 {[%clk 0:00:08]}  Rd3+ {[%clk 0:00:08]} 43. Kf2 {[%clk 0:00:09]}  Rb3 {[%clk 0:00:07]} 44. Ba3 {[%clk 0:00:06]}  b4 {[%clk 0:00:08]} 45. Rxc4 {[%clk 0:00:07]}  bxa3 {[%clk 0:00:07]} 46. bxa3 {[%clk 0:00:06]}  Rxa3 {[%clk 0:00:08]} 47. Rc7 {[%clk 0:00:07]}  Ra1 {[%clk 0:00:02]} 48. Ra7 {[%clk 0:00:07]}  a3 {[%clk 0:00:02]} 49. Kf3 {[%clk 0:00:08]}  a2 {[%clk 0:00:03]} 50. Kg4 {[%clk 0:00:08]}  f5+ {[%clk 0:00:02]} 51. Kg5 {[%clk 0:00:09]}  f4 {[%clk 0:00:02]} 52. Kg6 {[%clk 0:00:09]}  Kf8 {[%clk 0:00:02]} 53. Kf6 {[%clk 0:00:10]}  Ke8 {[%clk 0:00:02]} 54. gxf4 {[%clk 0:00:08]}  exf4 {[%clk 0:00:02]} 55. Ra8+ {[%clk 0:00:05]}  Kd7 {[%clk 0:00:02]} 56. Ra6 {[%clk 0:00:06]}  f3 {[%clk 0:00:02]} 57. Ra7+ {[%clk 0:00:07]}  Kc6 {[%clk 0:00:02]} 58. Ra3 {[%clk 0:00:07]} 1-0


[Site "https://www.chess.com"]

[Event "Titled Tuesday Blitz January 11 2022"]
[White "Willow, Jonah B"]
[Black "Escalona Landi, Samid Eduardo"]
[WhiteFideId "438804"]
[BlackFideId "3937437"]
[WhiteElo "2261"]
[BlackElo "2242"]
[Result "1-0"]
[Round "02"]
[TimeControl "180+1"]
[Date "2022.01.11"]
[WhiteClock "0:00:04"]
[BlackClock "0:00:01"]

1. e4 {[%clk 0:03:00]}  e5 {[%clk 0:02:57]} 2. Nf3 {[%clk 0:03:01]}  Nc6 {[%clk 0:02:58]} 3. Nc3 {[%clk 0:03:01]}  Nf6 {[%clk 0:02:58]} 4. Bb5 {[%clk 0:03:02]}  Bb4 {[%clk 0:02:57]} 5. O-O {[%clk 0:03:02]}  O-O {[%clk 0:02:57]} 6. d3 {[%clk 0:03:02]}  d6 {[%clk 0:02:58]} 7. Bg5 {[%clk 0:03:02]}  Ne7 {[%clk 0:02:58]} 8. Nh4 {[%clk 0:03:00]}  c6 {[%clk 0:02:57]} 9. Bc4 {[%clk 0:02:43]}  Ng6 {[%clk 0:02:57]} 10. Nxg6 {[%clk 0:02:42]}  hxg6 {[%clk 0:02:58]} 11. Kh1 {[%clk 0:02:41]}  b5 {[%clk 0:02:34]} 12. Bb3 {[%clk 0:02:40]}  a5 {[%clk 0:02:34]} 13. a4 {[%clk 0:02:36]}  bxa4 {[%clk 0:02:06]} 14. Nxa4 {[%clk 0:02:29]}  d5 {[%clk 0:02:05]} 15. exd5 {[%clk 0:02:19]}  cxd5 {[%clk 0:02:05]} 16. c3 {[%clk 0:02:14]}  Be7 {[%clk 0:01:58]} 17. Qe2 {[%clk 0:02:04]}  Rb8 {[%clk 0:01:49]} 18. Bc2 {[%clk 0:01:48]}  Bd6 {[%clk 0:01:44]} 19. Qf3 {[%clk 0:01:38]}  Be6 {[%clk 0:01:40]} 20. Rfe1 {[%clk 0:01:34]}  Re8 {[%clk 0:01:38]} 21. h3 {[%clk 0:01:25]}  Qc7 {[%clk 0:01:26]} 22. Bxf6 {[%clk 0:01:16]}  gxf6 {[%clk 0:01:27]} 23. Qxf6 {[%clk 0:01:16]}  Bd7 {[%clk 0:01:20]} 24. Re3 {[%clk 0:00:55]}  Re6 {[%clk 0:01:16]} 25. Qh4 {[%clk 0:00:53]}  Kg7 {[%clk 0:01:12]} 26. Rf3 {[%clk 0:00:35]}  e4 {[%clk 0:00:47]} 27. dxe4 {[%clk 0:00:34]}  dxe4 {[%clk 0:00:46]} 28. Re3 {[%clk 0:00:12]}  Rh8 {[%clk 0:00:44]} 29. Qg4 {[%clk 0:00:12]}  f5 {[%clk 0:00:42]} 30. Qd1 {[%clk 0:00:11]}  Bc6 {[%clk 0:00:35]} 31. Qd4+ {[%clk 0:00:10]}  Be5 {[%clk 0:00:34]} 32. Qc4 {[%clk 0:00:11]}  Qe7 {[%clk 0:00:19]} 33. Nc5 {[%clk 0:00:10]}  Rd6 {[%clk 0:00:14]} 34. Bb3 {[%clk 0:00:10]}  Rb8 {[%clk 0:00:06]} 35. Rb1 {[%clk 0:00:05]}  Bd5 {[%clk 0:00:06]} 36. Qa4 {[%clk 0:00:03]}  Bxb3 {[%clk 0:00:04]} 37. Nxb3 {[%clk 0:00:04]}  Rdb6 {[%clk 0:00:01]} 38. Nxa5 {[%clk 0:00:03]}  Rxb2 {[%clk 0:00:01]} 39. Rbe1 {[%clk 0:00:04]} 1-0


[Site "https://www.chess.com"]

[Event "Titled Tuesday Blitz January 11 2022"]
[White "Yoo, Christopher Woojin"]
[Black "Florescu, Codrut-Constantin"]
[WhiteFideId "30909694"]
[BlackFideId "1202200"]
[WhiteElo "2105"]
[BlackElo "2243"]
[Result "1-0"]
[Round "02"]
[TimeControl "180+1"]
[Date "2022.01.11"]
[WhiteClock "0:00:08"]
[BlackClock "0:00:12"]

1. e4 {[%clk 0:03:00]}  c5 {[%clk 0:02:59]} 2. Nf3 {[%clk 0:03:00]}  e6 {[%clk 0:02:59]} 3. c3 {[%clk 0:03:00]}  Nf6 {[%clk 0:02:58]} 4. e5 {[%clk 0:02:59]}  Nd5 {[%clk 0:02:56]} 5. d4 {[%clk 0:02:59]}  cxd4 {[%clk 0:02:57]} 6. cxd4 {[%clk 0:03:00]}  d6 {[%clk 0:02:56]} 7. Bc4 {[%clk 0:03:00]}  Nc6 {[%clk 0:02:55]} 8. O-O {[%clk 0:03:01]}  Be7 {[%clk 0:02:54]} 9. Qe2 {[%clk 0:03:00]}  O-O {[%clk 0:02:50]} 10. Rd1 {[%clk 0:03:00]}  Na5 {[%clk 0:02:49]} 11. Bd3 {[%clk 0:02:59]}  Nb4 {[%clk 0:02:47]} 12. exd6 {[%clk 0:02:57]}  Qxd6 {[%clk 0:02:25]} 13. Be4 {[%clk 0:02:51]}  Bd7 {[%clk 0:02:19]} 14. Nc3 {[%clk 0:02:49]}  Bc6 {[%clk 0:02:17]} 15. Ne5 {[%clk 0:02:40]}  Bxe4 {[%clk 0:02:03]} 16. Nxe4 {[%clk 0:02:38]}  Qd8 {[%clk 0:01:55]} 17. Bf4 {[%clk 0:01:49]}  Nd5 {[%clk 0:01:53]} 18. Bg3 {[%clk 0:01:48]}  a6 {[%clk 0:01:52]} 19. Rac1 {[%clk 0:01:13]}  Rc8 {[%clk 0:01:51]} 20. Nc5 {[%clk 0:01:10]}  Bxc5 {[%clk 0:01:47]} 21. dxc5 {[%clk 0:01:08]}  Nc6 {[%clk 0:01:46]} 22. Nc4 {[%clk 0:01:05]}  Qf6 {[%clk 0:01:45]} 23. Nd6 {[%clk 0:01:03]}  Ra8 {[%clk 0:01:19]} 24. Nxb7 {[%clk 0:00:58]}  h5 {[%clk 0:01:03]} 25. h4 {[%clk 0:00:51]}  Nd4 {[%clk 0:00:52]} 26. Qe4 {[%clk 0:00:46]}  Nf5 {[%clk 0:00:51]} 27. Be5 {[%clk 0:00:45]}  Qg6 {[%clk 0:00:50]} 28. Nd6 {[%clk 0:00:37]}  Nh6 {[%clk 0:00:48]} 29. Qxg6 {[%clk 0:00:34]}  fxg6 {[%clk 0:00:49]} 30. c6 {[%clk 0:00:32]}  Ng4 {[%clk 0:00:49]} 31. Bg3 {[%clk 0:00:31]}  Ra7 {[%clk 0:00:47]} 32. Ne4 {[%clk 0:00:27]}  Rc8 {[%clk 0:00:40]} 33. Ng5 {[%clk 0:00:20]}  Nb4 {[%clk 0:00:20]} 34. c7 {[%clk 0:00:18]}  Nd5 {[%clk 0:00:19]} 35. Nxe6 {[%clk 0:00:17]}  Nxc7 {[%clk 0:00:16]} 36. Rxc7 {[%clk 0:00:16]}  Rcxc7 {[%clk 0:00:15]} 37. Bxc7 {[%clk 0:00:16]}  Rb7 {[%clk 0:00:15]} 38. Ng5 {[%clk 0:00:11]}  Kf8 {[%clk 0:00:14]} 39. Bd6+ {[%clk 0:00:10]}  Ke8 {[%clk 0:00:14]} 40. Re1+ {[%clk 0:00:10]}  Kd8 {[%clk 0:00:13]} 41. Ne6+ {[%clk 0:00:08]}  Kc8 {[%clk 0:00:13]} 42. Rc1+ {[%clk 0:00:08]}  Kd7 {[%clk 0:00:12]} 43. Nc5+ {[%clk 0:00:08]} 1-0


[Site "https://www.chess.com"]

[Event "Titled Tuesday Blitz January 11 2022"]
[White "Yurovskykh, Oleksandr"]
[Black "Nesterov, Arseniy"]
[WhiteFideId "14134020"]
[BlackFideId "24198455"]
[WhiteElo "2292"]
[BlackElo "2489"]
[Result "0-1"]
[Round "02"]
[TimeControl "180+1"]
[Date "2022.01.11"]
[WhiteClock "0:01:47"]
[BlackClock "0:01:30"]

1. d4 {[%clk 0:02:57]}  d5 {[%clk 0:03:00]} 2. Bf4 {[%clk 0:02:56]}  Nf6 {[%clk 0:03:00]} 3. e3 {[%clk 0:02:55]}  Bf5 {[%clk 0:03:00]} 4. c4 {[%clk 0:02:55]}  e6 {[%clk 0:03:01]} 5. Nc3 {[%clk 0:02:55]}  Bb4 {[%clk 0:03:00]} 6. Qb3 {[%clk 0:02:53]}  Nc6 {[%clk 0:03:00]} 7. a3 {[%clk 0:02:51]}  Bxc3+ {[%clk 0:03:00]} 8. Qxc3 {[%clk 0:02:49]}  O-O {[%clk 0:02:55]} 9. Nf3 {[%clk 0:02:47]}  Ne4 {[%clk 0:02:56]} 10. Qc1 {[%clk 0:02:47]}  Na5 {[%clk 0:02:56]} 11. Qd1 {[%clk 0:02:42]}  dxc4 {[%clk 0:02:56]} 12. Ne5 {[%clk 0:02:35]}  b5 {[%clk 0:02:28]} 13. f3 {[%clk 0:02:35]}  Nf6 {[%clk 0:02:17]} 14. e4 {[%clk 0:02:35]}  Bg6 {[%clk 0:02:17]} 15. Rc1 {[%clk 0:02:31]}  Nb3 {[%clk 0:02:14]} 16. Rc2 {[%clk 0:02:29]}  Nxd4 {[%clk 0:02:05]} 17. Rd2 {[%clk 0:02:27]}  c5 {[%clk 0:02:05]} 18. Be3 {[%clk 0:02:27]}  Qa5 {[%clk 0:02:00]} 19. Bxd4 {[%clk 0:02:25]}  cxd4 {[%clk 0:02:01]} 20. Nc6 {[%clk 0:02:25]}  Qb6 {[%clk 0:01:58]} 21. Nxd4 {[%clk 0:02:25]}  Rad8 {[%clk 0:01:54]} 22. Nc2 {[%clk 0:02:24]}  Rxd2 {[%clk 0:01:52]} 23. Qxd2 {[%clk 0:02:25]}  Rd8 {[%clk 0:01:52]} 24. Qe3 {[%clk 0:02:25]}  Nd5 {[%clk 0:01:37]} 25. exd5 {[%clk 0:02:08]}  Bxc2 {[%clk 0:01:35]} 26. Qxb6 {[%clk 0:02:09]}  axb6 {[%clk 0:01:35]} 27. dxe6 {[%clk 0:02:03]}  Rd1+ {[%clk 0:01:34]} 28. Ke2 {[%clk 0:01:58]}  fxe6 {[%clk 0:01:31]} 29. g3 {[%clk 0:01:51]}  Rb1 {[%clk 0:01:30]} 30. Kd2 {[%clk 0:01:47]}  Bd3 {[%clk 0:01:30]} 0-1


[Site "https://www.chess.com"]

[Event "Titled Tuesday Blitz January 11 2022"]
[White "Andreikin, Dmitry"]
[Black "Santos Ruiz, Miguel"]
[WhiteFideId "4158814"]
[BlackFideId "22291482"]
[WhiteElo "2736"]
[BlackElo "2486"]
[Result "1-0"]
[Round "03"]
[TimeControl "180+1"]
[Date "2022.01.11"]
[WhiteClock "0:01:48"]
[BlackClock "0:00:32"]

1. d4 {[%clk 0:03:00]}  Nf6 {[%clk 0:02:59]} 2. c4 {[%clk 0:03:01]}  e6 {[%clk 0:03:00]} 3. Nc3 {[%clk 0:03:00]}  Bb4 {[%clk 0:02:59]} 4. Nf3 {[%clk 0:02:59]}  d5 {[%clk 0:02:55]} 5. Qa4+ {[%clk 0:02:57]}  Nc6 {[%clk 0:02:55]} 6. e3 {[%clk 0:02:57]}  O-O {[%clk 0:02:55]} 7. Qc2 {[%clk 0:02:53]}  Re8 {[%clk 0:02:54]} 8. Be2 {[%clk 0:02:41]}  dxc4 {[%clk 0:02:21]} 9. Bxc4 {[%clk 0:02:38]}  e5 {[%clk 0:02:19]} 10. O-O {[%clk 0:02:35]}  exd4 {[%clk 0:02:15]} 11. exd4 {[%clk 0:02:36]}  h6 {[%clk 0:02:03]} 12. Bxh6 {[%clk 0:02:33]}  gxh6 {[%clk 0:01:52]} 13. Qg6+ {[%clk 0:02:29]}  Kh8 {[%clk 0:01:52]} 14. Bxf7 {[%clk 0:02:27]}  Bf8 {[%clk 0:01:32]} 15. Nd5 {[%clk 0:02:24]}  Ne7 {[%clk 0:00:58]} 16. Nxe7 {[%clk 0:01:57]}  Rxe7 {[%clk 0:00:47]} 17. Qxf6+ {[%clk 0:01:52]}  Bg7 {[%clk 0:00:47]} 18. Qg6 {[%clk 0:01:52]}  Qd6 {[%clk 0:00:43]} 19. Ne5 {[%clk 0:01:48]}  Qxd4 {[%clk 0:00:32]} 20. Rad1 {[%clk 0:01:48]} 1-0


[Site "https://www.chess.com"]

[Event "Titled Tuesday Blitz January 11 2022"]
[White "Arabidze, Meri"]
[Black "Moskalenko, Alexander"]
[WhiteFideId "13604040"]
[BlackFideId "4155351"]
[WhiteElo "2329"]
[BlackElo "2515"]
[Result "1/2-1/2"]
[Round "03"]
[TimeControl "180+1"]
[Date "2022.01.11"]
[WhiteClock "0:00:08"]
[BlackClock "0:00:13"]

1. d4 {[%clk 0:03:00]}  Nf6 {[%clk 0:03:00]} 2. c4 {[%clk 0:03:01]}  g6 {[%clk 0:03:01]} 3. Nf3 {[%clk 0:03:01]}  Bg7 {[%clk 0:03:01]} 4. g3 {[%clk 0:03:01]}  O-O {[%clk 0:03:00]} 5. Bg2 {[%clk 0:03:02]}  d6 {[%clk 0:03:01]} 6. O-O {[%clk 0:03:02]}  Nc6 {[%clk 0:03:01]} 7. Nc3 {[%clk 0:03:02]}  a6 {[%clk 0:03:00]} 8. Bf4 {[%clk 0:03:01]}  Rb8 {[%clk 0:02:53]} 9. Rc1 {[%clk 0:03:01]}  Bd7 {[%clk 0:02:52]} 10. h3 {[%clk 0:02:59]}  b5 {[%clk 0:02:49]} 11. c5 {[%clk 0:02:59]}  b4 {[%clk 0:02:42]} 12. Na4 {[%clk 0:02:48]}  d5 {[%clk 0:02:13]} 13. Ne5 {[%clk 0:02:34]}  a5 {[%clk 0:02:11]} 14. b3 {[%clk 0:02:33]}  e6 {[%clk 0:02:09]} 15. Qd3 {[%clk 0:02:20]}  Nxe5 {[%clk 0:02:08]} 16. Bxe5 {[%clk 0:02:21]}  Bb5 {[%clk 0:02:08]} 17. Qd2 {[%clk 0:02:16]}  Ne4 {[%clk 0:02:05]} 18. Bxe4 {[%clk 0:02:10]}  Bxe5 {[%clk 0:02:05]} 19. Bd3 {[%clk 0:01:59]}  Bg7 {[%clk 0:01:51]} 20. Bxb5 {[%clk 0:01:57]}  Rxb5 {[%clk 0:01:52]} 21. e3 {[%clk 0:01:50]}  c6 {[%clk 0:01:50]} 22. Nb6 {[%clk 0:01:41]}  e5 {[%clk 0:01:44]} 23. Rfd1 {[%clk 0:01:36]}  e4 {[%clk 0:01:43]} 24. Ra1 {[%clk 0:01:29]}  h5 {[%clk 0:01:40]} 25. h4 {[%clk 0:01:18]}  g5 {[%clk 0:01:38]} 26. hxg5 {[%clk 0:01:15]}  Qxg5 {[%clk 0:01:39]} 27. Kg2 {[%clk 0:01:04]}  h4 {[%clk 0:01:39]} 28. Rg1 {[%clk 0:01:02]}  Qg4 {[%clk 0:01:35]} 29. Qd1 {[%clk 0:00:52]}  h3+ {[%clk 0:01:26]} 30. Kh2 {[%clk 0:00:51]}  Qf5 {[%clk 0:01:27]} 31. Qe2 {[%clk 0:00:47]}  Bf6 {[%clk 0:01:25]} 32. g4 {[%clk 0:00:46]}  Qg5 {[%clk 0:01:24]} 33. Nd7 {[%clk 0:00:32]}  Rd8 {[%clk 0:01:23]} 34. Nxf6+ {[%clk 0:00:31]}  Qxf6 {[%clk 0:01:24]} 35. Rg3 {[%clk 0:00:29]}  Rxc5 {[%clk 0:01:17]} 36. dxc5 {[%clk 0:00:21]}  Qxa1 {[%clk 0:01:17]} 37. Rxh3 {[%clk 0:00:22]}  Qe5+ {[%clk 0:01:07]} 38. Kg2 {[%clk 0:00:21]}  Kg7 {[%clk 0:01:01]} 39. g5 {[%clk 0:00:21]}  Rh8 {[%clk 0:01:01]} 40. Rxh8 {[%clk 0:00:18]}  Kxh8 {[%clk 0:01:02]} 41. Qh5+ {[%clk 0:00:18]}  Kg8 {[%clk 0:01:02]} 42. Qh6 {[%clk 0:00:18]}  Qe6 {[%clk 0:00:40]} 43. Qh2 {[%clk 0:00:17]}  Kg7 {[%clk 0:00:37]} 44. Qf4 {[%clk 0:00:16]}  Kg6 {[%clk 0:00:37]} 45. Kg3 {[%clk 0:00:16]}  Kg7 {[%clk 0:00:30]} 46. Kg2 {[%clk 0:00:16]}  f6 {[%clk 0:00:25]} 47. gxf6+ {[%clk 0:00:16]}  Qxf6 {[%clk 0:00:26]} 48. Kg3 {[%clk 0:00:17]}  Qe6 {[%clk 0:00:20]} 49. Qc7+ {[%clk 0:00:15]}  Kg6 {[%clk 0:00:20]} 50. Qf4 {[%clk 0:00:14]}  Qf5 {[%clk 0:00:20]} 51. Qd6+ {[%clk 0:00:14]}  Qf6 {[%clk 0:00:20]} 52. Qc7 {[%clk 0:00:12]}  Qg5+ {[%clk 0:00:19]} 53. Kh2 {[%clk 0:00:12]}  Qh4+ {[%clk 0:00:19]} 54. Kg2 {[%clk 0:00:12]}  Qg4+ {[%clk 0:00:20]} 55. Kh2 {[%clk 0:00:13]}  Qe6 {[%clk 0:00:20]} 56. Kg3 {[%clk 0:00:12]}  Kf6 {[%clk 0:00:18]} 57. Qf4+ {[%clk 0:00:12]}  Ke7 {[%clk 0:00:18]} 58. Qc7+ {[%clk 0:00:12]}  Kf6 {[%clk 0:00:18]} 59. Qf4+ {[%clk 0:00:12]}  Kg6 {[%clk 0:00:19]} 60. Qc7 {[%clk 0:00:13]}  Qf6 {[%clk 0:00:18]} 61. Kg2 {[%clk 0:00:12]}  Kf5 {[%clk 0:00:17]} 62. Qf4+ {[%clk 0:00:12]}  Ke6 {[%clk 0:00:17]} 63. Qc7 {[%clk 0:00:13]}  Qg5+ {[%clk 0:00:16]} 64. Kf1 {[%clk 0:00:12]}  Qh5 {[%clk 0:00:13]} 65. Qxc6+ {[%clk 0:00:13]}  Ke7 {[%clk 0:00:11]} 66. Qd6+ {[%clk 0:00:13]}  Ke8 {[%clk 0:00:12]} 67. c6 {[%clk 0:00:13]}  Qd1+ {[%clk 0:00:12]} 68. Kg2 {[%clk 0:00:14]}  Qf3+ {[%clk 0:00:12]} 69. Kg1 {[%clk 0:00:13]}  Qd1+ {[%clk 0:00:12]} 70. Kh2 {[%clk 0:00:13]}  Qh5+ {[%clk 0:00:12]} 71. Kg2 {[%clk 0:00:13]}  Qf3+ {[%clk 0:00:13]} 72. Kg1 {[%clk 0:00:11]}  Qd1+ {[%clk 0:00:13]} 73. Kg2 {[%clk 0:00:08]}  Qf3+ {[%clk 0:00:13]} 1/2-1/2


[Site "https://www.chess.com"]